Workbook

Sheet 千亩方
A1: 南陵县2022年水稻绿色高质高效行动项目千亩示范方等拟扶持主体申报情况一览表
A2: 序号 | B2: 项目类别 | C2: 项目名称 | D2: 项目实施单位 | E2: 项目建设地点 | F2: 负责人 | G2: 项目建设内容 | H2: 申报面积（亩） | I2: 项目投资（万元） | J2: 拟扶持资金（万元）
A3: 一 | B3: 千亩示范方项目 | C3: 1、籍山镇三连村千亩示范方项目 | D3: 南陵县盛源农业种植专业合作社 | E3: 三连村 | F3: 朱天军 | G3: 购买农业生产资料（种子，农药）和社会化服务 | H3: 760 | I3: 8.5 | J3: =H3*50/10000 -> 3.800
D4: 李五九 | E4: 三连村 | F4: 李五九 | G4: 购买农业生产资料（种子，农药）和社会化服务 | H4: 260 | I4: 3.5 | J4: =H4*50/10000 -> 1.300
C5: 2、籍山镇葛林村千亩示范方项目 | D5: 南陵良运优质稻专业合作社 | E5: 葛林村 | F5: 杨承龙 | G5: 购买农业生产资料（种子，农药）和社会化服务 | H5: 1236 | I5: 12 | J5: 6.180
C6: 3、籍山镇尹塘村千亩示范方项目 | D6: 芜湖市南陵县小红农业专业合作社 | E6: 尹塘村 | F6: 俞小红 | G6: 购买农业生产资料（种子，农药）和社会化服务 | H6: 1420 | I6: 15 | J6: 7.100
C7: 4、弋江镇新光、宋桥、竟河等村千亩示范方项目 | D7: 南陵县邓金平水稻种植家庭农场 | E7: 竟河村 | F7: 邓金平 | G7: 购买农业生产资料（种子，农药）和社会化服务 | H7: 200 | I7: 3.8 | J7: 1.000
D8: 南陵县志玥水稻种植家庭农场 | E8: 宋桥村 | F8: 曹四子 | G8: 购买农业生产资料（种子，农药）和社会化服务 | H8: 218 | I8: 2.5 | J8: 1.090
D9: 南陵县朱有兵水稻 种植家庭农场 | E9: 新光村 | F9: 朱有兵 | G9: 购买农业生产资料（种子，农药）和社会化服务 | H9: 640 | I9: 7 | J9: 3.200
C10: 5、弋江镇五一、四连等村千亩示范方项目 | D10: 南陵县杰盛水稻种植专业合作社 | E10: 五一村 | F10: 汪光杰 | G10: 购买农业生产资料（种子，农药）和社会化服务 | H10: 1060 | I10: 10.65 | J10: 5.300
D11: 南陵县乐农水稻种植家庭农场 | E11: 四连村 | F11: 徐文正 | G11: 购买农业生产资料（种子，农药）和社会化服务 | H11: 500 | I11: 6 | J11: 2.500
C12: 6、弋江镇东河村千亩示范方项目 | D12: 南陵县程书宝种植家庭农场 | E12: 东河村 | F12: 程书宝 | G12: 购买农业生产资料（种子，农药）和社会化服务 | H12: 1002 | I12: 10.7 | J12: 5.010
C13: 7、许镇镇马仁村千亩示范方项目 | D13: 南陵县英花水稻种植 专业合作社 | E13: 马仁联合冯村等 | F13: 汪荣明 | G13: 购买农业生产资料（种子，农药）和社会化服务 | H13: 780 | I13: 9 | J13: 3.900
D14: 於大贵 | E14: 马仁淤村 | F14: 於大贵 | G14: 购买农业生产资料（种子，农药）和社会化服务 | H14: 197 | I14: 2.12 | J14: 0.985
D15: 吴和水 | E15: 马仁淤村 | F15: 吴和水 | G15: 购买农业生产资料（种子，农药）和社会化服务 | H15: 105 | I15: 1.51 | J15: 0.525
D16: 南陵县汪修宝水稻 种植家庭农场 | E16: 马仁洪塘 | F16: 汪修宝 | G16: 购买农业生产资料（种子，农药）和社会化服务 | H16: 349 | I16: 3.5 | J16: 1.745
C17: 8、许镇镇仙坊村千亩示范方项目 | D17: 南陵县冯辉水稻种 植家庭农场 | E17: 仙坊冯村 | F17: 冯辉 | G17: 购买农业生产资料（种子，农药）和社会化服务 | H17: 155 | I17: 1.83 | J17: 0.775
D18: 冯小红 | E18: 仙坊文一文二 | F18: 冯小红 | G18: 购买农业生产资料（种子，农药）和社会化服务 | H18: 406 | I18: 4.42 | J18: 2.030
D19: 南陵县玉明水稻 种植家庭农场 | E19: 马仁村联合 | F19: 戴玉明 | G19: 购买农业生产资料（种子，农药）和社会化服务 | H19: 259 | I19: 3 | J19: 1.295
D20: 焦祖田 | E20: 马仁村於村 | F20: 焦祖田 | G20: 购买农业生产资料（种子，农药）和社会化服务 | H20: 373 | I20: 3.79 | J20: 1.865
C21: 9、许镇镇大浦试验区千亩示范方项目 | D21: 芜湖东源新农村 开发股份有限公司 | E21: 大浦试验区 高标良田区 | F21: 汪廷才 | G21: 购买农业生产资料（种子，农药）和社会化服务 | H21: 1850 | I21: 19 | J21: 9.250
C22: 10、三里镇澄桥村千亩示范方项目 | D22: 南陵兴农优质稻生产专业合作社 | E22: 方村、七村、基点 | F22: 李鑫鹏 | G22: 购买农业生产资料（种子，农药）和社会化服务 | H22: 320 | I22: 3.5 | J22: 1.600
D23: 南陵七甲水产养殖家庭农场 | E23: 红旗、观山 | F23: 朱云飞 | G23: 购买农业生产资料（种子，农药）和社会化服务 | H23: 500 | I23: 6 | J23: 2.500
D24: 秦永春 | E24: 三房、新塘 | F24: 秦永春 | G24: 购买农业生产资料（种子，农药）和社会化服务 | H24: 300 | I24: 3.2 | J24: 1.500
C25: 11、三里镇双河村千亩示范方项目 | D25: 南陵县海朋水稻种植家庭农场 | E25: 双河村 | F25: 高希武 | G25: 购买农业生产资料（种子，农药）和社会化服务 | H25: 2450 | I25: 25 | J25: 12.250
C26: 12、三里镇澄桥村千亩示范方项目 | D26: 芜湖海梦水稻种植家庭农场 | E26: 南街、基点、五房 | F26: 赵根海 | G26: 购买农业生产资料（种子，农药）和社会化服务 | H26: 600 | I26: 6.3 | J26: 3.000
D27: 芜湖柔茂生态农业开发有限公司 | E27: 团山、金山、万冲 | F27: 陈勇刚 | G27: 购买农业生产资料（种子，农药）和社会化服务 | H27: 500 | I27: 5.87 | J27: 2.500
C28: 13、三里镇热爱村千亩示范方项目 | D28: 芜湖睿祥生态农业发展有限公司 | E28: 热爱村 | F28: 俞明 | G28: 购买农业生产资料（种子，农药）和社会化服务 | H28: 1160 | I28: 12 | J28: 5.800
C29: 14、何湾镇前官村 千亩示范方项目 | D29: 南陵县春茂种养综合家庭农场 | E29: 汤门组 | F29: 刘春 | G29: 购买农业生产资料（种子，农药）和社会化服务 | H29: 200 | I29: 2.5 | J29: 1.000
D30: 南陵县方才友水稻 种植家庭农场 | E30: 永丰、后官组 | F30: 方才友 | G30: 购买农业生产资料（种子，农药）和社会化服务 | H30: 530 | I30: 5.5 | J30: 2.650
D31: 南陵县雁飞种养 综合家庭农场 | E31: 前官组 | F31: 孙卫华 | G31: 购买农业生产资料（种子，农药）和社会化服务 | H31: 312 | I31: 4 | J31: 1.560
C32: 15、何湾镇绿岭村 千亩示范方项目 | D32: 南陵县三五水稻 种植家庭农场 | E32: 院子、姚沟等组 | F32: 钱三五 | G32: 购买农业生产资料（种子，农药）和社会化服务 | H32: 1100 | I32: 12 | J32: 5.500
C33: 16、何湾镇呈祥村 千亩示范方项目 | D33: 南陵县鸿宝水稻 种植家庭农场 | E33: 呈祥、南郭等组 | F33: 易东东 | G33: 购买农业生产资料（种子，农药）和社会化服务 | H33: 1000 | I33: 11 | J33: 5.000
C34: 17、工山镇跃进村千亩示范方项目 | D34: 南陵县正茂水稻种植家庭农场 | E34: 跃进村八都何 | F34: 何正茂 | G34: 购买农业生产资料（种子，农药）和社会化服务 | H34: 300 | I34: 2 | J34: 1.500
D35: 南陵县利建种养 综合家庭农场 | E35: 跃进村八都何 | F35: 乔东付 | G35: 购买农业生产资料（种子，农药）和社会化服务 | H35: 500 | I35: 6 | J35: 2.500
D36: 南陵县金海种植家庭农场 | E36: 跃进村八都何 | F36: 徐金海 | G36: 购买农业生产资料（种子，农药）和社会化服务 | H36: 300 | I36: 2 | J36: 1.500
C37: 18、家发镇滨玉村千亩示范方项目 | D37: 南陵县大山水稻专业合作社 | E37: 马山村昂村组 滨玉村方桥、小山组 | F37: 田则义 | G37: 购买农业生产资料（种子，农药）和社会化服务 | H37: 1300 | I37: 14 | J37: 6.500
C38: 19、家发镇永林村千亩示范方项目 | D38: 南陵县达彪优质稻种植专业合作社 | E38: 永林村梅塘组、闵拐组、 长丰组、桥头张组 | F38: 胡达彪 | G38: 购买农业生产资料（种子，农药）和社会化服务 | H38: 1061 | I38: 11 | J38: 5.305
C39: 20、烟墩镇烟墩村千亩示范方项目 | D39: 南陵县金太阳种养综合家庭农场 | E39: 霭里村前村、格外 王家塘组、烟墩村燕子拐组枝村棵组 | F39: 裴风荣 | G39: 购买农业生产资料（种子，农药）和社会化服务 | H39: 1120 | I39: 13 | J39: 5.600
C40: 合计 | H40: =SUM(H3:H39) -> 25323 | I40: =SUM(I3:I39) -> 272.69 | J40: 126.615
A41: 二 | B41: 绿色防控新农药、新材料、新技术试验示范 | C41: 新技术 | D41: 南陵县瑞金水稻种植家庭农场 | E41: 工山镇万安村 | F41: 方益敏 | G41: 50%氯虫苯甲酰胺种子包衣防控二化螟试验 | H41: 300 | I41: 6.6 | J41: 3
C42: 新技术 | D42: 南陵县民丰水稻种植家庭农场 | E42: 三里镇上马村 | F42: 吴键 | G42: 稻杰桶混丙•苄防除水直播稻田杂草药效试验 | H42: 500 | I42: 6.5 | J42: 3
C43: 新农药 | D43: 南陵县家稼丰植保专业合作社 | E43: 弋江镇紫溪村 | F43: 梅杰 | G43: “80亿孢子/毫升金龟子绿僵菌CQMa421 可分散油悬浮剂”防治水稻害虫 | H43: 120 | I43: 6.36 | J43: 3
C44: 合计 | H44: =SUM(H41:H43) -> 920 | I44: =SUM(I41:I43) -> 19.46 | J44: 9
A45: 三 | B45: 低位早熟再生稻高产技术攻关 | C45: 低位早熟再生稻高产技术攻关 | D45: 芜湖市星火农业实用技术研究所 | E45: 籍山镇新坝村 | F45: 程太平 | G45: 开展低位早熟再生稻高产攻关研究 | H45: 100 | I45: 16 | J45: 8
C46: 合计 | H46: 100 | I46: 16 | J46: 8

Sheet 万亩片
A1: 南陵县2022年水稻绿色高质高效行动项目万亩示范片拟扶持主体申报情况一览表
A2: 序号 | B2: 项目类别 | C2: 项目名称 | D2: 项目实施单位 | E2: 项目建设地点 | F2: 负责人 | G2: 项目建设内容 | H2: 申报面积（亩） | I2: 项目投资（万元） | J2: 拟扶持资金（万元）
A3: 一 | B3: 万亩示范片 | C3: 籍山镇万亩示范片 | D3: 南陵县范家滩龙虾养殖专业合作社 | E3: 仓溪村 | F3: 吴保萍 | G3: 购买农业生产资料（种子，农药）和社会化服务 | H3: =3744+360 -> 4104 | I3: =37.64+3.6 -> 41.24 | J3: =(H3*0.005)*1 -> 20.52
D4: 南陵县美海种养综合家庭农场 | E4: 仓溪村港湾 | F4: 潘美海 | G4: 购买农业生产资料（种子，农药）和社会化服务 | H4: 450 | I4: =(H4*0.015)*1 -> 6.75 | J4: 2.25
D5: 南陵县养马滩种养综合家庭农场 | E5: 仓溪村土桥 | F5: 刘文斌 | G5: 购买农业生产资料（种子，农药）和社会化服务 | H5: 370 | I5: 5.55 | J5: 1.85
D6: 南陵县王海宝种养综合家庭农场 | E6: 仓溪村高坝 | F6: 王海宝 | G6: 购买农业生产资料（种子，农药）和社会化服务 | H6: 370 | I6: 5.55 | J6: 1.85
D7: 南陵县纪燕平种养综合家庭农场 | E7: 仓溪村下村 | F7: 纪燕平 | G7: 购买农业生产资料（种子，农药）和社会化服务 | H7: 350 | I7: 5.25 | J7: 1.75
D8: 李明福 | E8: 仓溪村江村 | F8: 李明福 | G8: 购买农业生产资料（种子，农药）和社会化服务 | H8: 350 | I8: 5.25 | J8: 1.75
D9: 秦基玲 | E9: 仓溪村沿刘 | F9: 秦基玲 | G9: 购买农业生产资料（种子，农药）和社会化服务 | H9: 304 | I9: 4.56 | J9: 1.52
D10: 南陵县一条鱼农业有限公司 | E10: 仓溪张公渡 | F10: 谷浩 | G10: 购买农业生产资料（种子，农药）和社会化服务 | H10: 280 | I10: 4.2 | J10: 1.4
D11: 洪启昌 | E11: 仓溪村三河 | F11: 洪启昌 | G11: 购买农业生产资料（种子，农药）和社会化服务 | H11: 267 | I11: 4.005 | J11: 1.335
D12: 南陵县溪源种养综合家庭农场 | E12: 仓溪村查村 | F12: 查柏平 | G12: 购买农业生产资料（种子，农药）和社会化服务 | H12: 523 | I12: 7.845 | J12: 2.615
D13: 陈超 | E13: 仓溪村新民 | F13: 陈超 | G13: 购买农业生产资料（种子，农药）和社会化服务 | H13: 200 | I13: 3 | J13: 1
D14: 戴文化 | E14: 仓溪村联一 | F14: 戴文化 | G14: 购买农业生产资料（种子，农药）和社会化服务 | H14: 190 | I14: 2.85 | J14: 0.95
D15: 戴俊 | E15: 仓溪村河湾 | F15: 戴俊 | G15: 购买农业生产资料（种子，农药）和社会化服务 | H15: 165 | I15: 2.475 | J15: 0.825
D16: 徐正旺 | E16: 仓溪村墩上 | F16: 徐正旺 | G16: 购买农业生产资料（种子，农药）和社会化服务 | H16: 123 | I16: 1.845 | J16: 0.615
D17: 陈江林 | E17: 仓溪村张公渡 | F17: 陈江林 | G17: 购买农业生产资料（种子，农药）和社会化服务 | H17: 120 | I17: 1.8 | J17: 0.6
D18: 戴生林 | E18: 仓溪村河湾 | F18: 戴生林 | G18: 购买农业生产资料（种子，农药）和社会化服务 | H18: 105 | I18: 1.575 | J18: 0.525
D19: 魏福生 | E19: 仓溪村墩上 | F19: 魏福生 | G19: 购买农业生产资料（种子，农药）和社会化服务 | H19: 102 | I19: 1.53 | J19: 0.51
D20: 孙翠芳 | E20: 黄金村程义组 | F20: 孙翠芳 | G20: 购买农业生产资料（种子，农药）和社会化服务 | H20: 70 | I20: 1.05 | J20: 0.35
D21: 戴柏庭 | E21: 黄金村蒋塘组 | F21: 戴柏庭 | G21: 购买农业生产资料（种子，农药）和社会化服务 | H21: 180 | I21: 2.7 | J21: 0.9
D22: 戴宁波 | E22: 黄金村上村组 | F22: 戴宁波 | G22: 购买农业生产资料（种子，农药）和社会化服务 | H22: 417 | I22: 6.255 | J22: 2.085
D23: 南陵县黄金生态水稻种植家庭农场 | E23: 黄金村 | F23: 戴元春 | G23: 购买农业生产资料（种子，农药）和社会化服务 | H23: 633 | I23: 9.495 | J23: 3.165
D24: 陈利明 | E24: 界山村 | F24: 陈利明 | G24: 购买农业生产资料（种子，农药）和社会化服务 | H24: 100 | I24: 1.5 | J24: 0.5
D25: 陈德真 | E25: 新建村陈村组 | F25: 陈德真 | G25: 购买农业生产资料（种子，农药）和社会化服务 | H25: 217 | I25: 3.255 | J25: 1.085
D26: 刘金龙 | E26: 新建村刘村组 | F26: 刘金龙 | G26: 购买农业生产资料（种子，农药）和社会化服务 | H26: 202 | I26: 3.03 | J26: 1.01
D27: 南陵县董泽梅种养综合家庭农场 | E27: 三连村长乐村 | F27: 董泽梅 | G27: 购买农业生产资料（种子，农药）和社会化服务 | H27: 260 | I27: 3.9 | J27: 1.3
D28: 陈代胜 | E28: 新建村陈村组 | F28: 陈代胜 | G28: 购买农业生产资料（种子，农药）和社会化服务 | H28: 87 | I28: 1.305 | J28: 0.435
D29: 南陵县新坝水产养殖专业合作社 | E29: 新坝村 | F29: 孟长和 | G29: 购买农业生产资料（种子，农药）和社会化服务 | H29: 70 | I29: 1.05 | J29: 0.35
D30: 陈胜利 | E30: 新建村陈村组 | F30: 陈胜利 | G30: 购买农业生产资料（种子，农药）和社会化服务 | H30: 60 | I30: 0.9 | J30: 0.3
D31: 张万金 | E31: 芦塘村电站 | F31: 张万金 | G31: 购买农业生产资料（种子，农药）和社会化服务 | H31: 60 | I31: 0.9 | J31: 0.3
D32: 小计 | H32: =SUM(H3:H31) -> 10729 | I32: 140.615 | J32: 53.645
A33: 二 | B33: 万亩示范片 | C33: 弋江镇新陶、紫溪、柿坝、东河、弋丰、钟塘、上洲等村万亩示范片项目 | D33: 南陵县弋江种植专业合作社 | E33: 新陶、紫溪 | F33: 胡宗宝 | G33: 购买农业生产资料（种子，农药）和社会化服务 | H33: 8640 | I33: 97.88 | J33: 43.2
D34: 南陵县金丰水稻种植专业合作社 | E34: 上洲 | F34: 李丰 | G34: 购买农业生产资料（种子，农药）和社会化服务 | H34: 2460 | I34: 36.2 | J34: 12.3
D35: 南陵县五千亩水稻种植专业合作社 | E35: 黄城 | F35: 陈洲强 | G35: 购买农业生产资料（种子，农药）和社会化服务 | H35: 3050 | I35: 36 | J35: 15.25
D36: 小计 | H36: =SUM(H33:H35) -> 14150 | I36: 170.08 | J36: 70.75
A37: 三 | B37: 万亩示范片 | C37: 弋江镇五一、四连、中联、东河、柿坝、弋丰、钟塘等村万亩示范片项目 | D37: 芜湖青弋江种业有限公司 | E37: 柿坝、东河、 弋丰、钟塘 | F37: 汪根火 | G37: 购买农业生产资料（种子，农药）和社会化服务 | H37: 4910 | I37: 50 | J37: 24.55
D38: 南陵县王树林种养综合家庭农场 | E38: 四连村 | F38: 王树林 | G38: 购买农业生产资料（种子，农药）和社会化服务 | H38: 620 | I38: 6.5 | J38: 3.1
D39: 南陵县友英慧种养综合家庭农场 | E39: 四连村 | F39: 王友 | G39: 购买农业生产资料（种子，农药）和社会化服务 | H39: 387 | I39: 4 | J39: 1.935
D40: 南陵县李仁华种养综合家庭农场 | E40: 五一村 | F40: 李仁华 | G40: 购买农业生产资料（种子，农药）和社会化服务 | H40: 715 | I40: 7.5 | J40: 3.575
D41: 南陵县思钱水稻种植家庭农场 | E41: 五一村 | F41: 俞思钱 | G41: 购买农业生产资料（种子，农药）和社会化服务 | H41: 363 | I41: 3.7 | J41: 1.815
D42: 南陵县刘承林水稻种植家庭农场 | E42: 合义村 | F42: 刘承林 | G42: 购买农业生产资料（种子，农药）和社会化服务 | H42: 915 | I42: 9.5 | J42: 4.575
D43: 刘小兵 | E43: 五一村 | F43: 刘小兵 | G43: 购买农业生产资料（种子，农药）和社会化服务 | H43: 390 | I43: 4 | J43: 1.95
D44: 俞水 | E44: 中联村 | F44: 俞水 | G44: 购买农业生产资料（种子，农药）和社会化服务 | H44: 263 | I44: 2.7 | J44: 1.315
D45: 南陵县秦伟水稻种植家庭农场 | E45: 黄城村 | F45: 秦继友 | G45: 购买农业生产资料（种子，农药）和社会化服务 | H45: 322 | I45: 3.5 | J45: 1.61
D46: 南陵县汪前生种养综合家庭农场 | E46: 五一村 | F46: 汪前生 | G46: 购买农业生产资料（种子，农药）和社会化服务 | H46: 457 | I46: 4.8 | J46: 2.285
D47: 俞友春 | E47: 中联村 | F47: 俞友春 | G47: 购买农业生产资料（种子，农药）和社会化服务 | H47: 457 | I47: 4.8 | J47: 2.285
D48: 南陵县祝革宝种养综合家庭农场 | E48: 五一村 | F48: 祝革宝 | G48: 购买农业生产资料（种子，农药）和社会化服务 | H48: 311 | I48: 3.5 | J48: 1.555
D49: 张宏先 | E49: 五一村 | F49: 张宏先 | G49: 购买农业生产资料（种子，农药）和社会化服务 | H49: 447 | I49: 4.5 | J49: 2.235
D50: 南陵县阮代兵种养综合家庭农场 | E50: 五一村 | F50: 阮代兵 | G50: 购买农业生产资料（种子，农药）和社会化服务 | H50: 540 | I50: 5 | J50: 2.7
D51: 阮小三 | E51: 中联村 | F51: 阮小三 | G51: 购买农业生产资料（种子，农药）和社会化服务 | H51: 507 | I51: 5.2 | J51: 2.535
D52: 南陵县吕开宝种养综合家庭农场 | E52: 东河村 | F52: 吕开宝 | G52: 购买农业生产资料（种子，农药）和社会化服务 | H52: 867 | I52: 8.8 | J52: 4.335
D53: 俞根金 | E53: 中联村 | F53: 俞根金 | G53: 购买农业生产资料（种子，农药）和社会化服务 | H53: 414 | I53: 4.5 | J53: 2.07
D54: 南陵县何昌胜种养综合家庭农场 | E54: 四连村 | F54: 何昌胜 | G54: 购买农业生产资料（种子，农药）和社会化服务 | H54: 472 | I54: 5 | J54: 2.36
D55: 俞三保 | E55: 中联村 | F55: 俞三保 | G55: 购买农业生产资料（种子，农药）和社会化服务 | H55: 311 | I55: 3.3 | J55: 1.555
D56: 汪光金 | E56: 五一村 | F56: 汪光金 | G56: 购买农业生产资料（种子，农药）和社会化服务 | H56: 441 | I56: 4.5 | J56: 2.205
D57: 南陵县金火水稻种植家庭农场 | E57: 紫溪村 | F57: 汪金火 | G57: 购买农业生产资料（种子，农药）和社会化服务 | H57: 323 | I57: 3.5 | J57: 1.615
D58: 南陵县炳旺水稻种植家庭农场 | E58: 紫溪村 | F58: 王炳旺 | G58: 购买农业生产资料（种子，农药）和社会化服务 | H58: 475 | I58: 5 | J58: 2.375
D59: 谈友福 | E59: 黄城村 | F59: 谈友福 | G59: 购买农业生产资料（种子，农药）和社会化服务 | H59: 174 | I59: 2 | J59: 0.87
D60: 南陵县吴怀库水稻种植家庭农场 | E60: 中联村 | F60: 吴怀库 | G60: 购买农业生产资料（种子，农药）和社会化服务 | H60: 166 | I60: 1.8 | J60: 0.83
D61: 小计 | H61: =SUM(H37:H60) -> 15247 | I61: =SUM(I37:I60) -> 157.6 | J61: =SUM(J37:J60) -> 76.235
A62: 四 | B62: 万亩示范片 | C62: 许镇镇205国道沿线万亩示范片 | D62: 南陵县明伟水稻种植专业合作社 | E62: 文阁村章溪、达张等 | F62: 刘云兰 | G62: 购买农业生产资料（种子，农药）和社会化服务 | H62: 1995 | I62: 21.09 | J62: =H62*50/10000 -> 9.975
D63: 秦根桃 | E63: 文阁孟庄 | F63: 秦根桃 | G63: 购买农业生产资料（种子，农药）和社会化服务 | H63: 216 | I63: 2.10 | J63: =H63*50/10000 -> 1.080
D64: 南陵县秦黑安水稻种植家庭农场 | E64: 文阁孟庄 | F64: 秦黑安 | G64: 购买农业生产资料（种子，农药）和社会化服务 | H64: 817 | I64: 8.42 | J64: 4.085
D65: 秦田好 | E65: 奎湖村后叶、王兴等 | F65: 秦田好 | G65: 购买农业生产资料（种子，农药）和社会化服务 | H65: 405 | I65: 4.79 | J65: 2.025
D66: 秦配根 | E66: 奎湖村八方何 | F66: 秦配根 | G66: 购买农业生产资料（种子，农药）和社会化服务 | H66: 507 | I66: 5.60 | J66: 2.535
D67: 秦正海 | E67: 奎湖村高屋基 | F67: 秦正海 | G67: 购买农业生产资料（种子，农药）和社会化服务 | H67: 515 | I67: 6.44 | J67: 2.575
D68: 何宏道 | E68: 高桥秋口 | F68: 何宏道 | G68: 购买农业生产资料（种子，农药）和社会化服务 | H68: 430 | I68: 5.55 | J68: 2.150
D69: 何胜秀 | E69: 高桥戴前周刘 | F69: 何胜秀 | G69: 购买农业生产资料（种子，农药）和社会化服务 | H69: 222 | I69: 3.73 | J69: 1.110
D70: 张家玉 | E70: 黄塘村 | F70: 张家玉 | G70: 购买农业生产资料（种子，农药）和社会化服务 | H70: 134 | I70: 1.82 | J70: 0.670
D71: 南陵县戴非州种养综合家庭农场 | E71: 黄塘王家墩 | F71: 戴非州 | G71: 购买农业生产资料（种子，农药）和社会化服务 | H71: 190 | I71: 2.35 | J71: 0.950
D72: 南陵县小正水稻种植家庭农场 | E72: 池湖村丁坝 | F72: 叶小正 | G72: 购买农业生产资料（种子，农药）和社会化服务 | H72: 630 | I72: 7.59 | J72: 3.150
D73: 南陵县王祥松水稻种植家庭农场 | E73: 池湖村大村许等 | F73: 王祥松 | G73: 购买农业生产资料（种子，农药）和社会化服务 | H73: 232 | I73: 3.02 | J73: 1.160
D74: 俞昌彪 | E74: 池湖村大村许 | F74: 俞昌彪 | G74: 购买农业生产资料（种子，农药）和社会化服务 | H74: 211 | I74: 2.74 | J74: 1.055
D75: 南陵县小村许水稻种植家庭农场 | E75: 池湖村大村许 | F75: 许长明 | G75: 购买农业生产资料（种子，农药）和社会化服务 | H75: 643 | I75: 7.16 | J75: 3.215
D76: 南陵县许金根水稻种植家庭农场 | E76: 池湖村七都何 | F76: 许金根 | G76: 购买农业生产资料（种子，农药）和社会化服务 | H76: 210 | I76: 2.65 | J76: 1.050
D77: 南陵县何小牛水稻种植家庭农场 | E77: 龙潭周村新屋 | F77: 何小牛 | G77: 购买农业生产资料（种子，农药）和社会化服务 | H77: 192 | I77: 2.30 | J77: 0.960
D78: 南陵县何绪堂水稻种植家庭农场 | E78: 龙潭安村 | F78: 何绪堂 | G78: 购买农业生产资料（种子，农药）和社会化服务 | H78: 125 | I78: 1.66 | J78: 0.625
D79: 陶小五 | E79: 龙潭中心冯村 | F79: 陶小五 | G79: 购买农业生产资料（种子，农药）和社会化服务 | H79: 362 | I79: 5.10 | J79: 1.810
D80: 南陵县王永凤水稻种植家庭农场 | E80: 龙潭中心等 | F80: 王永凤 | G80: 购买农业生产资料（种子，农药）和社会化服务 | H80: 182 | I80: 2.28 | J80: 0.910
D81: 梅树春 | E81: 仙坊仙酒长青陶庄 | F81: 梅树春 | G81: 购买农业生产资料（种子，农药）和社会化服务 | H81: 246 | I81: 2.98 | J81: 1.230
D82: 南陵县袁禾农业生产专业合作社 | E82: 仙坊刘村 | F82: 励平 | G82: 购买农业生产资料（种子，农药）和社会化服务 | H82: 1500 | I82: 21.60 | J82: 7.500
D83: 南陵县昌达种养综合家庭农场 | E83: 仙坊三甲 | F83: 汪昌和 | G83: 购买农业生产资料（种子，农药）和社会化服务 | H83: 429 | I83: 5.10 | J83: 2.145
D84: 南陵县李虎报水稻种植家庭农场 | E84: 仙坊三甲五房 | F84: 李虎报 | G84: 购买农业生产资料（种子，农药）和社会化服务 | H84: 439 | I84: 5.80 | J84: 2.195
D85: 南陵县蒋淑水稻种植家庭农场 | E85: 仙坊文一文二 | F85: 蒋淑彪 | G85: 购买农业生产资料（种子，农药）和社会化服务 | H85: 251 | I85: 3.21 | J85: 1.255
D86: 南陵县陈忠云水稻种植家庭农场 | F86: 陈忠云 | G86: 购买农业生产资料（种子，农药）和社会化服务 | H86: 180 | I86: 2.60 | J86: 0.900
D87: 方根宝 | F87: 方根宝 | G87: 购买农业生产资料（种子，农药）和社会化服务 | H87: 440 | I87: 5.93 | J87: 2.200
D88: 小计 | H88: =SUM(H62:H87) -> 11703 | I88: 144 | J88: 58.515
A89: 五 | B89: 万亩示范片 | C89: 许镇镇三荻路沿线万亩示范片 | D89: 王国胜 | E89: 清城村王郭 | F89: 王国胜 | G89: 购买农业生产资料（种子，农药）和社会化服务 | H89: 290 | I89: 2.52 | J89: =H89*50/10000 -> 1.45
D90: 南陵县孔得水水稻种植家庭农场 | E90: 清城村先锋 | F90: 孔得水 | G90: 购买农业生产资料（种子，农药）和社会化服务 | H90: 150 | I90: 1.50 | J90: =H90*50/10000 -> 0.75
D91: 王启照 | E91: 清城村王郭 | F91: 王启照 | G91: 购买农业生产资料（种子，农药）和社会化服务 | H91: 268 | I91: 2.68 | J91: 1.34
D92: 南陵县邓玉林水稻种植家庭农场 | E92: 丁塘村邓村 | F92: 邓玉林 | G92: 购买农业生产资料（种子，农药）和社会化服务 | H92: 280 | I92: 2.80 | J92: 1.40
D93: 南陵县邓森林水稻种植家庭农场 | E93: 星火村 | F93: 邓森林 | G93: 购买农业生产资料（种子，农药）和社会化服务 | H93: 140 | I93: 1.40 | J93: 0.70
D94: 南陵县郭温好水稻种植家庭农场 | E94: 星火村东郭 | F94: 郭温好 | G94: 购买农业生产资料（种子，农药）和社会化服务 | H94: 320 | I94: 3.20 | J94: 1.60
D95: 南陵县邓先山水稻种植家庭农场 | E95: 星火村西庄 | F95: 邓先山 | G95: 购买农业生产资料（种子，农药）和社会化服务 | H95: 253 | I95: 2.53 | J95: 1.27
D96: 南陵县日宝种养综合家庭农场 | E96: 星火村刘村等 | F96: 刘日宝 | G96: 购买农业生产资料（种子，农药）和社会化服务 | H96: 480 | I96: 4.80 | J96: 2.40
D97: 南陵县倪福正种养综合家庭农场 | E97: 新渭黄墓等 | F97: 倪福正 | G97: 购买农业生产资料（种子，农药）和社会化服务 | H97: 610 | I97: 6.10 | J97: 3.05
D98: 芜湖沐瑶瑶水稻种植家庭农场 | E98: 许镇村董村 | F98: 叶彦伟 | G98: 购买农业生产资料（种子，农药）和社会化服务 | H98: 150 | I98: 1.50 | J98: 0.75
D99: 芜湖沐俊道水稻种植家庭农场 | E99: 许镇村董村 | F99: 沐俊道 | G99: 购买农业生产资料（种子，农药）和社会化服务 | H99: 680 | I99: 6.80 | J99: 3.40
D100: 裴宝东 | E100: 东联村 | F100: 裴宝东 | G100: 购买农业生产资料（种子，农药）和社会化服务 | H100: 278 | I100: 2.78 | J100: 1.39
D101: 汪来水 | E101: 东联村 | F101: 汪来水 | G101: 购买农业生产资料（种子，农药）和社会化服务 | H101: 380 | I101: 3.80 | J101: 1.90
D102: 南陵县玉子种养综合家庭农场 | E102: 东联村东陶 | F102: 林玉宝 | G102: 购买农业生产资料（种子，农药）和社会化服务 | H102: 252 | I102: 2.52 | J102: 1.26
D103: 朱光红 | E103: 东联村 | F103: 朱光红 | G103: 购买农业生产资料（种子，农药）和社会化服务 | H103: 212 | I103: 2.12 | J103: 1.06
D104: 万立华 | E104: 东联村 | F104: 万立华 | G104: 购买农业生产资料（种子，农药）和社会化服务 | H104: 147 | I104: 1.47 | J104: 0.74
D105: 杨高红 | E105: 长青村马村 | F105: 杨高红 | G105: 购买农业生产资料（种子，农药）和社会化服务 | H105: 1020 | I105: 10.20 | J105: 5.10
D106: 南陵县许红种养综合家庭农场 | E106: 民一村许村 | F106: 许红 | G106: 购买农业生产资料（种子，农药）和社会化服务 | H106: 310 | I106: 3.10 | J106: 1.55
D107: 南陵县曹尤职种养综合家庭农场 | E107: 民一村 | F107: 曹尤职 | G107: 购买农业生产资料（种子，农药）和社会化服务 | H107: 330 | I107: 3.30 | J107: 1.65
D108: 南陵县新银水稻种植家庭农场 | E108: 东三村 | F108: 赵新银 | G108: 购买农业生产资料（种子，农药）和社会化服务 | H108: 290 | I108: 2.90 | J108: 1.45
D109: 南陵县李修好水稻种植家庭农场 | E109: 东三村东河陶 | F109: 李修好 | G109: 购买农业生产资料（种子，农药）和社会化服务 | H109: 232 | I109: 2.32 | J109: 1.16
D110: 南陵县海兰种养综合家庭农场 | E110: 东三村 | F110: 朱希海 | G110: 购买农业生产资料（种子，农药）和社会化服务 | H110: 600 | I110: 6.00 | J110: 3.00
D111: 南陵县益民水稻种植家庭农场 | E111: 民合村 | F111: 朱国农 | G111: 购买农业生产资料（种子，农药）和社会化服务 | H111: 108 | I111: 1.08 | J111: 0.54
D112: 朱三宝 | E112: 民合村龙西龙东等 | F112: 朱三宝 | G112: 购买农业生产资料（种子，农药）和社会化服务 | H112: 490 | I112: 4.90 | J112: 2.45
D113: 南陵县朱小海种养综合家庭农场 | E113: 池湖村江沿 | F113: 朱小海 | G113: 购买农业生产资料（种子，农药）和社会化服务 | H113: 750 | I113: 7.50 | J113: 3.75
D114: 俞青水 | E114: 池湖村下坝 | F114: 俞青水 | G114: 购买农业生产资料（种子，农药）和社会化服务 | H114: 307 | I114: 3.07 | J114: 1.54
D115: 王亚琴 | E115: 北斗村 | F115: 王亚琴 | G115: 购买农业生产资料（种子，农药）和社会化服务 | H115: 549 | I115: 5.49 | J115: 2.75
D116: 何祥虎 | E116: 华林村 | F116: 何祥虎 | G116: 购买农业生产资料（种子，农药）和社会化服务 | H116: 290 | I116: 2.90 | J116: 1.45
D117: 南陵县志明种养综合家庭农场 | E117: 华林下新周 | F117: 周志明 | G117: 购买农业生产资料（种子，农药）和社会化服务 | H117: 435 | I117: 5.02 | J117: 2.18
D118: 小计 | H118: =SUM(H89:H117) -> 10601 | I118: 106.3 | J118: 53.005
D119: 合计 | H119: =H32+H36+H61+H88+H118 -> 62430 | I119: 718.205 | J119: 312.15
